{"text_format":"1","workbook":"xlsx","n_sheets":3,"sheets":["Feuil2","Feuil3","Feuil1"],"not_rendered":{"charts":0,"images":0,"macros":1,"external_links":0,"defined_names":2,"comments":0,"pivot_tables":0},"unopened":[],"bounds":{"document_bytes":16777216,"sheet_cells":100000,"rows_first":2000,"rows_last":500,"rows_between":2000,"halvings":0,"cell_chars":16384,"cell_head_chars":4096},"cells_cut":0,"cells_raw":0,"read":"whole","date_system":"1900"}

{"sheet":"Feuil2","index":0,"n_rows":31,"n_cols":8,"rows_kept":31,"cut":false,"hidden":false,"merged":[[1,0,30,0],[1,1,6,1],[7,1,9,1],[10,1,12,1],[13,1,15,1],[16,1,18,1],[19,1,21,1],[22,1,24,1],[25,1,27,1],[28,1,30,1]]}
["domaine","profil","seniorité","TJM Moyen","TJM LE MOINS DISANT","CABINETS"]
["Conseil en strategie & management","Consultant","junior",{"$f":"AVERAGE(Feuil3!D2,Feuil3!F2,Feuil3!G2,Feuil3!I2,Feuil3!J2,Feuil3!K2,Feuil3!O2,Feuil3!P2,Feuil3!R2,Feuil3!T2,Feuil3!V2,Feuil3!W2,Feuil3!X2,Feuil3!Y2,Feuil3!Z2,Feuil3!AB2,Feuil3!AD2,Feuil3!AF2,Feuil3!AH2,Feuil3!AJ2,Feuil3!AL2,Feuil3!AM2,Feuil3!AN2,Feuil3!AP2,Feuil3!AR2,Feuil3!AS2,Feuil3!AU2,Feuil3!AV2,Feuil3!AX2,Feuil3!AY2,Feuil3!BA2,Feuil3!BC2,Feuil3!BE2,Feuil3!BG2,Feuil3!BI2,Feuil3!BK2,Feuil3!BL2)","v":4585.7142857142853},{"$f":"MIN(Feuil3!D2,Feuil3!F2,Feuil3!G2,Feuil3!I2,Feuil3!J2,Feuil3!K2,Feuil3!O2,Feuil3!P2,Feuil3!R2,Feuil3!T2,Feuil3!V2,Feuil3!W2,Feuil3!X2,Feuil3!Y2,Feuil3!Z2,Feuil3!AB2,Feuil3!AD2,Feuil3!AF2,Feuil3!AH2,Feuil3!AJ2,Feuil3!AL2,Feuil3!AM2,Feuil3!AN2,Feuil3!AP2,Feuil3!AR2,Feuil3!AS2,Feuil3!AU2,Feuil3!AV2,Feuil3!AX2,Feuil3!AY2,Feuil3!BA2,Feuil3!BC2,Feuil3!BE2,Feuil3!BG2,Feuil3!BI2,Feuil3!BK2,Feuil3!BL2)","v":3000},{"$f":"moinsdisant(E2)","v":"KM PROJETS "}]
[null,null,"confirme",{"$f":"AVERAGE(Feuil3!D3,Feuil3!F3,Feuil3!G3,Feuil3!I3,Feuil3!J3,Feuil3!K3,Feuil3!O3,Feuil3!P3,Feuil3!R3,Feuil3!T3,Feuil3!V3,Feuil3!W3,Feuil3!X3,Feuil3!Y3,Feuil3!Z3,Feuil3!AB3,Feuil3!AD3,Feuil3!AF3,Feuil3!AH3,Feuil3!AJ3,Feuil3!AL3,Feuil3!AM3,Feuil3!AN3,Feuil3!AP3,Feuil3!AR3,Feuil3!AS3,Feuil3!AU3,Feuil3!AV3,Feuil3!AX3,Feuil3!AY3,Feuil3!BA3,Feuil3!BC3,Feuil3!BE3,Feuil3!BG3,Feuil3!BI3,Feuil3!BK3,Feuil3!BL3)","v":6250},{"$f":"MIN(Feuil3!D3,Feuil3!F3,Feuil3!G3,Feuil3!I3,Feuil3!J3,Feuil3!K3,Feuil3!O3,Feuil3!P3,Feuil3!R3,Feuil3!T3,Feuil3!V3,Feuil3!W3,Feuil3!X3,Feuil3!Y3,Feuil3!Z3,Feuil3!AB3,Feuil3!AD3,Feuil3!AF3,Feuil3!AH3,Feuil3!AJ3,Feuil3!AL3,Feuil3!AM3,Feuil3!AN3,Feuil3!AP3,Feuil3!AR3,Feuil3!AS3,Feuil3!AU3,Feuil3!AV3,Feuil3!AX3,Feuil3!AY3,Feuil3!BA3,Feuil3!BC3,Feuil3!BE3,Feuil3!BG3,Feuil3!BI3,Feuil3!BK3,Feuil3!BL3)","v":5000},{"$f":"moinsdisant(E3)","v":"UP ADVISORY "},null,"Fonction personnalisée"]
[null,null,"senior",{"$f":"AVERAGE(Feuil3!D4,Feuil3!F4,Feuil3!G4,Feuil3!I4,Feuil3!J4,Feuil3!K4,Feuil3!O4,Feuil3!P4,Feuil3!R4,Feuil3!T4,Feuil3!V4,Feuil3!W4,Feuil3!X4,Feuil3!Y4,Feuil3!Z4,Feuil3!AB4,Feuil3!AD4,Feuil3!AF4,Feuil3!AH4,Feuil3!AJ4,Feuil3!AL4,Feuil3!AM4,Feuil3!AN4,Feuil3!AP4,Feuil3!AR4,Feuil3!AS4,Feuil3!AU4,Feuil3!AV4,Feuil3!AX4,Feuil3!AY4,Feuil3!BA4,Feuil3!BC4,Feuil3!BE4,Feuil3!BG4,Feuil3!BI4,Feuil3!BK4,Feuil3!BL4)","v":6457.1428571428569},{"$f":"MIN(Feuil3!D4,Feuil3!F4,Feuil3!G4,Feuil3!I4,Feuil3!J4,Feuil3!K4,Feuil3!O4,Feuil3!P4,Feuil3!R4,Feuil3!T4,Feuil3!V4,Feuil3!W4,Feuil3!X4,Feuil3!Y4,Feuil3!Z4,Feuil3!AB4,Feuil3!AD4,Feuil3!AF4,Feuil3!AH4,Feuil3!AJ4,Feuil3!AL4,Feuil3!AM4,Feuil3!AN4,Feuil3!AP4,Feuil3!AR4,Feuil3!AS4,Feuil3!AU4,Feuil3!AV4,Feuil3!AX4,Feuil3!AY4,Feuil3!BA4,Feuil3!BC4,Feuil3!BE4,Feuil3!BG4,Feuil3!BI4,Feuil3!BK4,Feuil3!BL4)","v":4000},{"$f":"moinsdisant(E4)","v":"systema "},null,"= moinsdisant(cellule de la valeur recherchée)"]
[null,null,"manager",{"$f":"AVERAGE(Feuil3!D5,Feuil3!F5,Feuil3!G5,Feuil3!I5,Feuil3!J5,Feuil3!K5,Feuil3!O5,Feuil3!P5,Feuil3!R5,Feuil3!T5,Feuil3!V5,Feuil3!W5,Feuil3!X5,Feuil3!Y5,Feuil3!Z5,Feuil3!AB5,Feuil3!AD5,Feuil3!AF5,Feuil3!AH5,Feuil3!AJ5,Feuil3!AL5,Feuil3!AM5,Feuil3!AN5,Feuil3!AP5,Feuil3!AR5,Feuil3!AS5,Feuil3!AU5,Feuil3!AV5,Feuil3!AX5,Feuil3!AY5,Feuil3!BA5,Feuil3!BC5,Feuil3!BE5,Feuil3!BG5,Feuil3!BI5,Feuil3!BK5,Feuil3!BL5)","v":7890.909090909091},{"$f":"MIN(Feuil3!D5,Feuil3!F5,Feuil3!G5,Feuil3!I5,Feuil3!J5,Feuil3!K5,Feuil3!O5,Feuil3!P5,Feuil3!R5,Feuil3!T5,Feuil3!V5,Feuil3!W5,Feuil3!X5,Feuil3!Y5,Feuil3!Z5,Feuil3!AB5,Feuil3!AD5,Feuil3!AF5,Feuil3!AH5,Feuil3!AJ5,Feuil3!AL5,Feuil3!AM5,Feuil3!AN5,Feuil3!AP5,Feuil3!AR5,Feuil3!AS5,Feuil3!AU5,Feuil3!AV5,Feuil3!AX5,Feuil3!AY5,Feuil3!BA5,Feuil3!BC5,Feuil3!BE5,Feuil3!BG5,Feuil3!BI5,Feuil3!BK5,Feuil3!BL5)","v":4500},{"$f":"moinsdisant(E5)","v":"systema "}]
[null,null,"senior manager",{"$f":"AVERAGE(Feuil3!D6,Feuil3!F6,Feuil3!G6,Feuil3!I6,Feuil3!J6,Feuil3!K6,Feuil3!O6,Feuil3!P6,Feuil3!R6,Feuil3!T6,Feuil3!V6,Feuil3!W6,Feuil3!X6,Feuil3!Y6,Feuil3!Z6,Feuil3!AB6,Feuil3!AD6,Feuil3!AF6,Feuil3!AH6,Feuil3!AJ6,Feuil3!AL6,Feuil3!AM6,Feuil3!AN6,Feuil3!AP6,Feuil3!AR6,Feuil3!AS6,Feuil3!AU6,Feuil3!AV6,Feuil3!AX6,Feuil3!AY6,Feuil3!BA6,Feuil3!BC6,Feuil3!BE6,Feuil3!BG6,Feuil3!BI6,Feuil3!BK6,Feuil3!BL6)","v":10300},{"$f":"MIN(Feuil3!D6,Feuil3!F6,Feuil3!G6,Feuil3!I6,Feuil3!J6,Feuil3!K6,Feuil3!O6,Feuil3!P6,Feuil3!R6,Feuil3!T6,Feuil3!V6,Feuil3!W6,Feuil3!X6,Feuil3!Y6,Feuil3!Z6,Feuil3!AB6,Feuil3!AD6,Feuil3!AF6,Feuil3!AH6,Feuil3!AJ6,Feuil3!AL6,Feuil3!AM6,Feuil3!AN6,Feuil3!AP6,Feuil3!AR6,Feuil3!AS6,Feuil3!AU6,Feuil3!AV6,Feuil3!AX6,Feuil3!AY6,Feuil3!BA6,Feuil3!BC6,Feuil3!BE6,Feuil3!BG6,Feuil3!BI6,Feuil3!BK6,Feuil3!BL6)","v":5400},{"$f":"moinsdisant(E6)","v":"PARTENAIRE SERVICE "},null,"Cliquer sur le nom de l'onglet en bas puis Visualiser le code pour ouvrir l'éditeur VBA"]
[null,null,"Partner",{"$f":"AVERAGE(Feuil3!D7,Feuil3!F7,Feuil3!G7,Feuil3!I7,Feuil3!J7,Feuil3!K7,Feuil3!O7,Feuil3!P7,Feuil3!R7,Feuil3!T7,Feuil3!V7,Feuil3!W7,Feuil3!X7,Feuil3!Y7,Feuil3!Z7,Feuil3!AB7,Feuil3!AD7,Feuil3!AF7,Feuil3!AH7,Feuil3!AJ7,Feuil3!AL7,Feuil3!AM7,Feuil3!AN7,Feuil3!AP7,Feuil3!AR7,Feuil3!AS7,Feuil3!AU7,Feuil3!AV7,Feuil3!AX7,Feuil3!AY7,Feuil3!BA7,Feuil3!BC7,Feuil3!BE7,Feuil3!BG7,Feuil3!BI7,Feuil3!BK7,Feuil3!BL7)","v":13666.666666666666},{"$f":"MIN(Feuil3!D7,Feuil3!F7,Feuil3!G7,Feuil3!I7,Feuil3!J7,Feuil3!K7,Feuil3!O7,Feuil3!P7,Feuil3!R7,Feuil3!T7,Feuil3!V7,Feuil3!W7,Feuil3!X7,Feuil3!Y7,Feuil3!Z7,Feuil3!AB7,Feuil3!AD7,Feuil3!AF7,Feuil3!AH7,Feuil3!AJ7,Feuil3!AL7,Feuil3!AM7,Feuil3!AN7,Feuil3!AP7,Feuil3!AR7,Feuil3!AS7,Feuil3!AU7,Feuil3!AV7,Feuil3!AX7,Feuil3!AY7,Feuil3!BA7,Feuil3!BC7,Feuil3!BE7,Feuil3!BG7,Feuil3!BI7,Feuil3!BK7,Feuil3!BL7)","v":10000},{"$f":"moinsdisant(E7)","v":"Sia Partner "},null,"Aller dans Module 1 pour voir le code de la fonction commentée"]
[null,"PMO","junior",{"$f":"AVERAGE(Feuil3!D8,Feuil3!F8,Feuil3!G8,Feuil3!I8,Feuil3!J8,Feuil3!K8,Feuil3!O8,Feuil3!P8,Feuil3!R8,Feuil3!T8,Feuil3!V8,Feuil3!W8,Feuil3!X8,Feuil3!Y8,Feuil3!Z8,Feuil3!AB8,Feuil3!AD8,Feuil3!AF8,Feuil3!AH8,Feuil3!AJ8,Feuil3!AL8,Feuil3!AM8,Feuil3!AN8,Feuil3!AP8,Feuil3!AR8,Feuil3!AS8,Feuil3!AU8,Feuil3!AV8,Feuil3!AX8,Feuil3!AY8,Feuil3!BA8,Feuil3!BC8,Feuil3!BE8,Feuil3!BG8,Feuil3!BI8,Feuil3!BK8,Feuil3!BL8)","v":3807.5},{"$f":"MIN(Feuil3!D8,Feuil3!F8,Feuil3!G8,Feuil3!I8,Feuil3!J8,Feuil3!K8,Feuil3!O8,Feuil3!P8,Feuil3!R8,Feuil3!T8,Feuil3!V8,Feuil3!W8,Feuil3!X8,Feuil3!Y8,Feuil3!Z8,Feuil3!AB8,Feuil3!AD8,Feuil3!AF8,Feuil3!AH8,Feuil3!AJ8,Feuil3!AL8,Feuil3!AM8,Feuil3!AN8,Feuil3!AP8,Feuil3!AR8,Feuil3!AS8,Feuil3!AU8,Feuil3!AV8,Feuil3!AX8,Feuil3!AY8,Feuil3!BA8,Feuil3!BC8,Feuil3!BE8,Feuil3!BG8,Feuil3!BI8,Feuil3!BK8,Feuil3!BL8)","v":2500},{"$f":"moinsdisant(E8)","v":"VALORIS "}]
[null,null,"senior",{"$f":"AVERAGE(Feuil3!D9,Feuil3!F9,Feuil3!G9,Feuil3!I9,Feuil3!J9,Feuil3!K9,Feuil3!O9,Feuil3!P9,Feuil3!R9,Feuil3!T9,Feuil3!V9,Feuil3!W9,Feuil3!X9,Feuil3!Y9,Feuil3!Z9,Feuil3!AB9,Feuil3!AD9,Feuil3!AF9,Feuil3!AH9,Feuil3!AJ9,Feuil3!AL9,Feuil3!AM9,Feuil3!AN9,Feuil3!AP9,Feuil3!AR9,Feuil3!AS9,Feuil3!AU9,Feuil3!AV9,Feuil3!AX9,Feuil3!AY9,Feuil3!BA9,Feuil3!BC9,Feuil3!BE9,Feuil3!BG9,Feuil3!BI9,Feuil3!BK9,Feuil3!BL9)","v":5204.7619047619046},{"$f":"MIN(Feuil3!D9,Feuil3!F9,Feuil3!G9,Feuil3!I9,Feuil3!J9,Feuil3!K9,Feuil3!O9,Feuil3!P9,Feuil3!R9,Feuil3!T9,Feuil3!V9,Feuil3!W9,Feuil3!X9,Feuil3!Y9,Feuil3!Z9,Feuil3!AB9,Feuil3!AD9,Feuil3!AF9,Feuil3!AH9,Feuil3!AJ9,Feuil3!AL9,Feuil3!AM9,Feuil3!AN9,Feuil3!AP9,Feuil3!AR9,Feuil3!AS9,Feuil3!AU9,Feuil3!AV9,Feuil3!AX9,Feuil3!AY9,Feuil3!BA9,Feuil3!BC9,Feuil3!BE9,Feuil3!BG9,Feuil3!BI9,Feuil3!BK9,Feuil3!BL9)","v":4000},{"$f":"moinsdisant(E9)","v":"UP ADVISORY * VALORIS * COST HOUSE * FREELANCE "}]
[null,null,"expert",{"$f":"AVERAGE(Feuil3!D10,Feuil3!F10,Feuil3!G10,Feuil3!I10,Feuil3!J10,Feuil3!K10,Feuil3!O10,Feuil3!P10,Feuil3!R10,Feuil3!T10,Feuil3!V10,Feuil3!W10,Feuil3!X10,Feuil3!Y10,Feuil3!Z10,Feuil3!AB10,Feuil3!AD10,Feuil3!AF10,Feuil3!AH10,Feuil3!AJ10,Feuil3!AL10,Feuil3!AM10,Feuil3!AN10,Feuil3!AP10,Feuil3!AR10,Feuil3!AS10,Feuil3!AU10,Feuil3!AV10,Feuil3!AX10,Feuil3!AY10,Feuil3!BA10,Feuil3!BC10,Feuil3!BE10,Feuil3!BG10,Feuil3!BI10,Feuil3!BK10,Feuil3!BL10)","v":6671.4285714285716},{"$f":"MIN(Feuil3!D10,Feuil3!F10,Feuil3!G10,Feuil3!I10,Feuil3!J10,Feuil3!K10,Feuil3!O10,Feuil3!P10,Feuil3!R10,Feuil3!T10,Feuil3!V10,Feuil3!W10,Feuil3!X10,Feuil3!Y10,Feuil3!Z10,Feuil3!AB10,Feuil3!AD10,Feuil3!AF10,Feuil3!AH10,Feuil3!AJ10,Feuil3!AL10,Feuil3!AM10,Feuil3!AN10,Feuil3!AP10,Feuil3!AR10,Feuil3!AS10,Feuil3!AU10,Feuil3!AV10,Feuil3!AX10,Feuil3!AY10,Feuil3!BA10,Feuil3!BC10,Feuil3!BE10,Feuil3!BG10,Feuil3!BI10,Feuil3!BK10,Feuil3!BL10)","v":4500},{"$f":"moinsdisant(E10)","v":"COST HOUSE "}]
[null,"Organisation","junior",{"$f":"AVERAGE(Feuil3!D11,Feuil3!F11,Feuil3!G11,Feuil3!I11,Feuil3!J11,Feuil3!K11,Feuil3!O11,Feuil3!P11,Feuil3!R11,Feuil3!T11,Feuil3!V11,Feuil3!W11,Feuil3!X11,Feuil3!Y11,Feuil3!Z11,Feuil3!AB11,Feuil3!AD11,Feuil3!AF11,Feuil3!AH11,Feuil3!AJ11,Feuil3!AL11,Feuil3!AM11,Feuil3!AN11,Feuil3!AP11,Feuil3!AR11,Feuil3!AS11,Feuil3!AU11,Feuil3!AV11,Feuil3!AX11,Feuil3!AY11,Feuil3!BA11,Feuil3!BC11,Feuil3!BE11,Feuil3!BG11,Feuil3!BI11,Feuil3!BK11,Feuil3!BL11)","v":3940.909090909091},{"$f":"MIN(Feuil3!D11,Feuil3!F11,Feuil3!G11,Feuil3!I11,Feuil3!J11,Feuil3!K11,Feuil3!O11,Feuil3!P11,Feuil3!R11,Feuil3!T11,Feuil3!V11,Feuil3!W11,Feuil3!X11,Feuil3!Y11,Feuil3!Z11,Feuil3!AB11,Feuil3!AD11,Feuil3!AF11,Feuil3!AH11,Feuil3!AJ11,Feuil3!AL11,Feuil3!AM11,Feuil3!AN11,Feuil3!AP11,Feuil3!AR11,Feuil3!AS11,Feuil3!AU11,Feuil3!AV11,Feuil3!AX11,Feuil3!AY11,Feuil3!BA11,Feuil3!BC11,Feuil3!BE11,Feuil3!BG11,Feuil3!BI11,Feuil3!BK11,Feuil3!BL11)","v":2750},{"$f":"moinsdisant(E11)","v":"UP ADVISORY "}]
[null,null,"senior",{"$f":"AVERAGE(Feuil3!D12,Feuil3!F12,Feuil3!G12,Feuil3!I12,Feuil3!J12,Feuil3!K12,Feuil3!O12,Feuil3!P12,Feuil3!R12,Feuil3!T12,Feuil3!V12,Feuil3!W12,Feuil3!X12,Feuil3!Y12,Feuil3!Z12,Feuil3!AB12,Feuil3!AD12,Feuil3!AF12,Feuil3!AH12,Feuil3!AJ12,Feuil3!AL12,Feuil3!AM12,Feuil3!AN12,Feuil3!AP12,Feuil3!AR12,Feuil3!AS12,Feuil3!AU12,Feuil3!AV12,Feuil3!AX12,Feuil3!AY12,Feuil3!BA12,Feuil3!BC12,Feuil3!BE12,Feuil3!BG12,Feuil3!BI12,Feuil3!BK12,Feuil3!BL12)","v":5091.666666666667},{"$f":"MIN(Feuil3!D12,Feuil3!F12,Feuil3!G12,Feuil3!I12,Feuil3!J12,Feuil3!K12,Feuil3!O12,Feuil3!P12,Feuil3!R12,Feuil3!T12,Feuil3!V12,Feuil3!W12,Feuil3!X12,Feuil3!Y12,Feuil3!Z12,Feuil3!AB12,Feuil3!AD12,Feuil3!AF12,Feuil3!AH12,Feuil3!AJ12,Feuil3!AL12,Feuil3!AM12,Feuil3!AN12,Feuil3!AP12,Feuil3!AR12,Feuil3!AS12,Feuil3!AU12,Feuil3!AV12,Feuil3!AX12,Feuil3!AY12,Feuil3!BA12,Feuil3!BC12,Feuil3!BE12,Feuil3!BG12,Feuil3!BI12,Feuil3!BK12,Feuil3!BL12)","v":4000},{"$f":"moinsdisant(E12)","v":"UP ADVISORY "}]
[null,null,"expert",{"$f":"AVERAGE(Feuil3!D13,Feuil3!F13,Feuil3!G13,Feuil3!I13,Feuil3!J13,Feuil3!K13,Feuil3!O13,Feuil3!P13,Feuil3!R13,Feuil3!T13,Feuil3!V13,Feuil3!W13,Feuil3!X13,Feuil3!Y13,Feuil3!Z13,Feuil3!AB13,Feuil3!AD13,Feuil3!AF13,Feuil3!AH13,Feuil3!AJ13,Feuil3!AL13,Feuil3!AM13,Feuil3!AN13,Feuil3!AP13,Feuil3!AR13,Feuil3!AS13,Feuil3!AU13,Feuil3!AV13,Feuil3!AX13,Feuil3!AY13,Feuil3!BA13,Feuil3!BC13,Feuil3!BE13,Feuil3!BG13,Feuil3!BI13,Feuil3!BK13,Feuil3!BL13)","v":6616.666666666667},{"$f":"MIN(Feuil3!D13,Feuil3!F13,Feuil3!G13,Feuil3!I13,Feuil3!J13,Feuil3!K13,Feuil3!O13,Feuil3!P13,Feuil3!R13,Feuil3!T13,Feuil3!V13,Feuil3!W13,Feuil3!X13,Feuil3!Y13,Feuil3!Z13,Feuil3!AB13,Feuil3!AD13,Feuil3!AF13,Feuil3!AH13,Feuil3!AJ13,Feuil3!AL13,Feuil3!AM13,Feuil3!AN13,Feuil3!AP13,Feuil3!AR13,Feuil3!AS13,Feuil3!AU13,Feuil3!AV13,Feuil3!AX13,Feuil3!AY13,Feuil3!BA13,Feuil3!BC13,Feuil3!BE13,Feuil3!BG13,Feuil3!BI13,Feuil3!BK13,Feuil3!BL13)","v":4700},{"$f":"moinsdisant(E13)","v":"PARTENAIRE SERVICE "}]
[null,"management de projet","junior",{"$f":"AVERAGE(Feuil3!D14,Feuil3!F14,Feuil3!G14,Feuil3!I14,Feuil3!J14,Feuil3!K14,Feuil3!O14,Feuil3!P14,Feuil3!R14,Feuil3!T14,Feuil3!V14,Feuil3!W14,Feuil3!X14,Feuil3!Y14,Feuil3!Z14,Feuil3!AB14,Feuil3!AD14,Feuil3!AF14,Feuil3!AH14,Feuil3!AJ14,Feuil3!AL14,Feuil3!AM14,Feuil3!AN14,Feuil3!AP14,Feuil3!AR14,Feuil3!AS14,Feuil3!AU14,Feuil3!AV14,Feuil3!AX14,Feuil3!AY14,Feuil3!BA14,Feuil3!BC14,Feuil3!BE14,Feuil3!BG14,Feuil3!BI14,Feuil3!BK14,Feuil3!BL14)","v":3900},{"$f":"MIN(Feuil3!D14,Feuil3!F14,Feuil3!G14,Feuil3!I14,Feuil3!J14,Feuil3!K14,Feuil3!O14,Feuil3!P14,Feuil3!R14,Feuil3!T14,Feuil3!V14,Feuil3!W14,Feuil3!X14,Feuil3!Y14,Feuil3!Z14,Feuil3!AB14,Feuil3!AD14,Feuil3!AF14,Feuil3!AH14,Feuil3!AJ14,Feuil3!AL14,Feuil3!AM14,Feuil3!AN14,Feuil3!AP14,Feuil3!AR14,Feuil3!AS14,Feuil3!AU14,Feuil3!AV14,Feuil3!AX14,Feuil3!AY14,Feuil3!BA14,Feuil3!BC14,Feuil3!BE14,Feuil3!BG14,Feuil3!BI14,Feuil3!BK14,Feuil3!BL14)","v":3000},{"$f":"moinsdisant(E14)","v":"COST HOUSE * FREELANCE "}]
[null,null,"senior",{"$f":"AVERAGE(Feuil3!D15,Feuil3!F15,Feuil3!G15,Feuil3!I15,Feuil3!J15,Feuil3!K15,Feuil3!O15,Feuil3!P15,Feuil3!R15,Feuil3!T15,Feuil3!V15,Feuil3!W15,Feuil3!X15,Feuil3!Y15,Feuil3!Z15,Feuil3!AB15,Feuil3!AD15,Feuil3!AF15,Feuil3!AH15,Feuil3!AJ15,Feuil3!AL15,Feuil3!AM15,Feuil3!AN15,Feuil3!AP15,Feuil3!AR15,Feuil3!AS15,Feuil3!AU15,Feuil3!AV15,Feuil3!AX15,Feuil3!AY15,Feuil3!BA15,Feuil3!BC15,Feuil3!BE15,Feuil3!BG15,Feuil3!BI15,Feuil3!BK15,Feuil3!BL15)","v":5111.1111111111113},{"$f":"MIN(Feuil3!D15,Feuil3!F15,Feuil3!G15,Feuil3!I15,Feuil3!J15,Feuil3!K15,Feuil3!O15,Feuil3!P15,Feuil3!R15,Feuil3!T15,Feuil3!V15,Feuil3!W15,Feuil3!X15,Feuil3!Y15,Feuil3!Z15,Feuil3!AB15,Feuil3!AD15,Feuil3!AF15,Feuil3!AH15,Feuil3!AJ15,Feuil3!AL15,Feuil3!AM15,Feuil3!AN15,Feuil3!AP15,Feuil3!AR15,Feuil3!AS15,Feuil3!AU15,Feuil3!AV15,Feuil3!AX15,Feuil3!AY15,Feuil3!BA15,Feuil3!BC15,Feuil3!BE15,Feuil3!BG15,Feuil3!BI15,Feuil3!BK15,Feuil3!BL15)","v":4000},{"$f":"moinsdisant(E15)","v":"COST HOUSE * FREELANCE "}]
[null,null,"expert",{"$f":"AVERAGE(Feuil3!D16,Feuil3!F16,Feuil3!G16,Feuil3!I16,Feuil3!J16,Feuil3!K16,Feuil3!O16,Feuil3!P16,Feuil3!R16,Feuil3!T16,Feuil3!V16,Feuil3!W16,Feuil3!X16,Feuil3!Y16,Feuil3!Z16,Feuil3!AB16,Feuil3!AD16,Feuil3!AF16,Feuil3!AH16,Feuil3!AJ16,Feuil3!AL16,Feuil3!AM16,Feuil3!AN16,Feuil3!AP16,Feuil3!AR16,Feuil3!AS16,Feuil3!AU16,Feuil3!AV16,Feuil3!AX16,Feuil3!AY16,Feuil3!BA16,Feuil3!BC16,Feuil3!BE16,Feuil3!BG16,Feuil3!BI16,Feuil3!BK16,Feuil3!BL16)","v":6600},{"$f":"MIN(Feuil3!D16,Feuil3!F16,Feuil3!G16,Feuil3!I16,Feuil3!J16,Feuil3!K16,Feuil3!O16,Feuil3!P16,Feuil3!R16,Feuil3!T16,Feuil3!V16,Feuil3!W16,Feuil3!X16,Feuil3!Y16,Feuil3!Z16,Feuil3!AB16,Feuil3!AD16,Feuil3!AF16,Feuil3!AH16,Feuil3!AJ16,Feuil3!AL16,Feuil3!AM16,Feuil3!AN16,Feuil3!AP16,Feuil3!AR16,Feuil3!AS16,Feuil3!AU16,Feuil3!AV16,Feuil3!AX16,Feuil3!AY16,Feuil3!BA16,Feuil3!BC16,Feuil3!BE16,Feuil3!BG16,Feuil3!BI16,Feuil3!BK16,Feuil3!BL16)","v":4500},{"$f":"moinsdisant(E16)","v":"COST HOUSE "}]
[null,"Conseil en strategie & management","junior",{"$f":"AVERAGE(Feuil3!D17,Feuil3!F17,Feuil3!G17,Feuil3!I17,Feuil3!J17,Feuil3!K17,Feuil3!O17,Feuil3!P17,Feuil3!R17,Feuil3!T17,Feuil3!V17,Feuil3!W17,Feuil3!X17,Feuil3!Y17,Feuil3!Z17,Feuil3!AB17,Feuil3!AD17,Feuil3!AF17,Feuil3!AH17,Feuil3!AJ17,Feuil3!AL17,Feuil3!AM17,Feuil3!AN17,Feuil3!AP17,Feuil3!AR17,Feuil3!AS17,Feuil3!AU17,Feuil3!AV17,Feuil3!AX17,Feuil3!AY17,Feuil3!BA17,Feuil3!BC17,Feuil3!BE17,Feuil3!BG17,Feuil3!BI17,Feuil3!BK17,Feuil3!BL17)","v":4119.2307692307695},{"$f":"MIN(Feuil3!D17,Feuil3!F17,Feuil3!G17,Feuil3!I17,Feuil3!J17,Feuil3!K17,Feuil3!O17,Feuil3!P17,Feuil3!R17,Feuil3!T17,Feuil3!V17,Feuil3!W17,Feuil3!X17,Feuil3!Y17,Feuil3!Z17,Feuil3!AB17,Feuil3!AD17,Feuil3!AF17,Feuil3!AH17,Feuil3!AJ17,Feuil3!AL17,Feuil3!AM17,Feuil3!AN17,Feuil3!AP17,Feuil3!AR17,Feuil3!AS17,Feuil3!AU17,Feuil3!AV17,Feuil3!AX17,Feuil3!AY17,Feuil3!BA17,Feuil3!BC17,Feuil3!BE17,Feuil3!BG17,Feuil3!BI17,Feuil3!BK17,Feuil3!BL17)","v":2750},{"$f":"moinsdisant(E17)","v":"UP ADVISORY "}]
[null,null,"senior",{"$f":"AVERAGE(Feuil3!D18,Feuil3!F18,Feuil3!G18,Feuil3!I18,Feuil3!J18,Feuil3!K18,Feuil3!O18,Feuil3!P18,Feuil3!R18,Feuil3!T18,Feuil3!V18,Feuil3!W18,Feuil3!X18,Feuil3!Y18,Feuil3!Z18,Feuil3!AB18,Feuil3!AD18,Feuil3!AF18,Feuil3!AH18,Feuil3!AJ18,Feuil3!AL18,Feuil3!AM18,Feuil3!AN18,Feuil3!AP18,Feuil3!AR18,Feuil3!AS18,Feuil3!AU18,Feuil3!AV18,Feuil3!AX18,Feuil3!AY18,Feuil3!BA18,Feuil3!BC18,Feuil3!BE18,Feuil3!BG18,Feuil3!BI18,Feuil3!BK18,Feuil3!BL18)","v":5578.5714285714284},{"$f":"MIN(Feuil3!D18,Feuil3!F18,Feuil3!G18,Feuil3!I18,Feuil3!J18,Feuil3!K18,Feuil3!O18,Feuil3!P18,Feuil3!R18,Feuil3!T18,Feuil3!V18,Feuil3!W18,Feuil3!X18,Feuil3!Y18,Feuil3!Z18,Feuil3!AB18,Feuil3!AD18,Feuil3!AF18,Feuil3!AH18,Feuil3!AJ18,Feuil3!AL18,Feuil3!AM18,Feuil3!AN18,Feuil3!AP18,Feuil3!AR18,Feuil3!AS18,Feuil3!AU18,Feuil3!AV18,Feuil3!AX18,Feuil3!AY18,Feuil3!BA18,Feuil3!BC18,Feuil3!BE18,Feuil3!BG18,Feuil3!BI18,Feuil3!BK18,Feuil3!BL18)","v":4000},{"$f":"moinsdisant(E18)","v":"UP ADVISORY "}]
[null,null,"expert",{"$f":"AVERAGE(Feuil3!D19,Feuil3!F19,Feuil3!G19,Feuil3!I19,Feuil3!J19,Feuil3!K19,Feuil3!O19,Feuil3!P19,Feuil3!R19,Feuil3!T19,Feuil3!V19,Feuil3!W19,Feuil3!X19,Feuil3!Y19,Feuil3!Z19,Feuil3!AB19,Feuil3!AD19,Feuil3!AF19,Feuil3!AH19,Feuil3!AJ19,Feuil3!AL19,Feuil3!AM19,Feuil3!AN19,Feuil3!AP19,Feuil3!AR19,Feuil3!AS19,Feuil3!AU19,Feuil3!AV19,Feuil3!AX19,Feuil3!AY19,Feuil3!BA19,Feuil3!BC19,Feuil3!BE19,Feuil3!BG19,Feuil3!BI19,Feuil3!BK19,Feuil3!BL19)","v":6885.7142857142853},{"$f":"MIN(Feuil3!D19,Feuil3!F19,Feuil3!G19,Feuil3!I19,Feuil3!J19,Feuil3!K19,Feuil3!O19,Feuil3!P19,Feuil3!R19,Feuil3!T19,Feuil3!V19,Feuil3!W19,Feuil3!X19,Feuil3!Y19,Feuil3!Z19,Feuil3!AB19,Feuil3!AD19,Feuil3!AF19,Feuil3!AH19,Feuil3!AJ19,Feuil3!AL19,Feuil3!AM19,Feuil3!AN19,Feuil3!AP19,Feuil3!AR19,Feuil3!AS19,Feuil3!AU19,Feuil3!AV19,Feuil3!AX19,Feuil3!AY19,Feuil3!BA19,Feuil3!BC19,Feuil3!BE19,Feuil3!BG19,Feuil3!BI19,Feuil3!BK19,Feuil3!BL19)","v":5000},{"$f":"moinsdisant(E19)","v":"UP ADVISORY * KM PROJETS "}]
[null,"formations","junior",{"$f":"AVERAGE(Feuil3!D20,Feuil3!F20,Feuil3!G20,Feuil3!I20,Feuil3!J20,Feuil3!K20,Feuil3!O20,Feuil3!P20,Feuil3!R20,Feuil3!T20,Feuil3!V20,Feuil3!W20,Feuil3!X20,Feuil3!Y20,Feuil3!Z20,Feuil3!AB20,Feuil3!AD20,Feuil3!AF20,Feuil3!AH20,Feuil3!AJ20,Feuil3!AL20,Feuil3!AM20,Feuil3!AN20,Feuil3!AP20,Feuil3!AR20,Feuil3!AS20,Feuil3!AU20,Feuil3!AV20,Feuil3!AX20,Feuil3!AY20,Feuil3!BA20,Feuil3!BC20,Feuil3!BE20,Feuil3!BG20,Feuil3!BI20,Feuil3!BK20,Feuil3!BL20)","v":4028.5714285714284},{"$f":"MIN(Feuil3!D20,Feuil3!F20,Feuil3!G20,Feuil3!I20,Feuil3!J20,Feuil3!K20,Feuil3!O20,Feuil3!P20,Feuil3!R20,Feuil3!T20,Feuil3!V20,Feuil3!W20,Feuil3!X20,Feuil3!Y20,Feuil3!Z20,Feuil3!AB20,Feuil3!AD20,Feuil3!AF20,Feuil3!AH20,Feuil3!AJ20,Feuil3!AL20,Feuil3!AM20,Feuil3!AN20,Feuil3!AP20,Feuil3!AR20,Feuil3!AS20,Feuil3!AU20,Feuil3!AV20,Feuil3!AX20,Feuil3!AY20,Feuil3!BA20,Feuil3!BC20,Feuil3!BE20,Feuil3!BG20,Feuil3!BI20,Feuil3!BK20,Feuil3!BL20)","v":2700},{"$f":"moinsdisant(E20)","v":"UP ADVISORY "}]
[null,null,"senior",{"$f":"AVERAGE(Feuil3!D21,Feuil3!F21,Feuil3!G21,Feuil3!I21,Feuil3!J21,Feuil3!K21,Feuil3!O21,Feuil3!P21,Feuil3!R21,Feuil3!T21,Feuil3!V21,Feuil3!W21,Feuil3!X21,Feuil3!Y21,Feuil3!Z21,Feuil3!AB21,Feuil3!AD21,Feuil3!AF21,Feuil3!AH21,Feuil3!AJ21,Feuil3!AL21,Feuil3!AM21,Feuil3!AN21,Feuil3!AP21,Feuil3!AR21,Feuil3!AS21,Feuil3!AU21,Feuil3!AV21,Feuil3!AX21,Feuil3!AY21,Feuil3!BA21,Feuil3!BC21,Feuil3!BE21,Feuil3!BG21,Feuil3!BI21,Feuil3!BK21,Feuil3!BL21)","v":5469.2307692307695},{"$f":"MIN(Feuil3!D21,Feuil3!F21,Feuil3!G21,Feuil3!I21,Feuil3!J21,Feuil3!K21,Feuil3!O21,Feuil3!P21,Feuil3!R21,Feuil3!T21,Feuil3!V21,Feuil3!W21,Feuil3!X21,Feuil3!Y21,Feuil3!Z21,Feuil3!AB21,Feuil3!AD21,Feuil3!AF21,Feuil3!AH21,Feuil3!AJ21,Feuil3!AL21,Feuil3!AM21,Feuil3!AN21,Feuil3!AP21,Feuil3!AR21,Feuil3!AS21,Feuil3!AU21,Feuil3!AV21,Feuil3!AX21,Feuil3!AY21,Feuil3!BA21,Feuil3!BC21,Feuil3!BE21,Feuil3!BG21,Feuil3!BI21,Feuil3!BK21,Feuil3!BL21)","v":3900},{"$f":"moinsdisant(E21)","v":"AILANCY "}]
[null,null,"expert",{"$f":"AVERAGE(Feuil3!D22,Feuil3!F22,Feuil3!G22,Feuil3!I22,Feuil3!J22,Feuil3!K22,Feuil3!O22,Feuil3!P22,Feuil3!R22,Feuil3!T22,Feuil3!V22,Feuil3!W22,Feuil3!X22,Feuil3!Y22,Feuil3!Z22,Feuil3!AB22,Feuil3!AD22,Feuil3!AF22,Feuil3!AH22,Feuil3!AJ22,Feuil3!AL22,Feuil3!AM22,Feuil3!AN22,Feuil3!AP22,Feuil3!AR22,Feuil3!AS22,Feuil3!AU22,Feuil3!AV22,Feuil3!AX22,Feuil3!AY22,Feuil3!BA22,Feuil3!BC22,Feuil3!BE22,Feuil3!BG22,Feuil3!BI22,Feuil3!BK22,Feuil3!BL22)","v":7021.4285714285716},{"$f":"MIN(Feuil3!D22,Feuil3!F22,Feuil3!G22,Feuil3!I22,Feuil3!J22,Feuil3!K22,Feuil3!O22,Feuil3!P22,Feuil3!R22,Feuil3!T22,Feuil3!V22,Feuil3!W22,Feuil3!X22,Feuil3!Y22,Feuil3!Z22,Feuil3!AB22,Feuil3!AD22,Feuil3!AF22,Feuil3!AH22,Feuil3!AJ22,Feuil3!AL22,Feuil3!AM22,Feuil3!AN22,Feuil3!AP22,Feuil3!AR22,Feuil3!AS22,Feuil3!AU22,Feuil3!AV22,Feuil3!AX22,Feuil3!AY22,Feuil3!BA22,Feuil3!BC22,Feuil3!BE22,Feuil3!BG22,Feuil3!BI22,Feuil3!BK22,Feuil3!BL22)","v":4900},{"$f":"moinsdisant(E22)","v":"AILANCY * PARTENAIRE SERVICE "}]
[null,"Consultant strategie &transformation","junior",{"$f":"AVERAGE(Feuil3!D23,Feuil3!F23,Feuil3!G23,Feuil3!I23,Feuil3!J23,Feuil3!K23,Feuil3!O23,Feuil3!P23,Feuil3!R23,Feuil3!T23,Feuil3!V23,Feuil3!W23,Feuil3!X23,Feuil3!Y23,Feuil3!Z23,Feuil3!AB23,Feuil3!AD23,Feuil3!AF23,Feuil3!AH23,Feuil3!AJ23,Feuil3!AL23,Feuil3!AM23,Feuil3!AN23,Feuil3!AP23,Feuil3!AR23,Feuil3!AS23,Feuil3!AU23,Feuil3!AV23,Feuil3!AX23,Feuil3!AY23,Feuil3!BA23,Feuil3!BC23,Feuil3!BE23,Feuil3!BG23,Feuil3!BI23,Feuil3!BK23,Feuil3!BL23)","v":4700},{"$f":"MIN(Feuil3!D23,Feuil3!F23,Feuil3!G23,Feuil3!I23,Feuil3!J23,Feuil3!K23,Feuil3!O23,Feuil3!P23,Feuil3!R23,Feuil3!T23,Feuil3!V23,Feuil3!W23,Feuil3!X23,Feuil3!Y23,Feuil3!Z23,Feuil3!AB23,Feuil3!AD23,Feuil3!AF23,Feuil3!AH23,Feuil3!AJ23,Feuil3!AL23,Feuil3!AM23,Feuil3!AN23,Feuil3!AP23,Feuil3!AR23,Feuil3!AS23,Feuil3!AU23,Feuil3!AV23,Feuil3!AX23,Feuil3!AY23,Feuil3!BA23,Feuil3!BC23,Feuil3!BE23,Feuil3!BG23,Feuil3!BI23,Feuil3!BK23,Feuil3!BL23)","v":3000},{"$f":"moinsdisant(E23)","v":"IB CONSULTING "}]
[null,null,"senior",{"$f":"AVERAGE(Feuil3!D24,Feuil3!F24,Feuil3!G24,Feuil3!I24,Feuil3!J24,Feuil3!K24,Feuil3!O24,Feuil3!P24,Feuil3!R24,Feuil3!T24,Feuil3!V24,Feuil3!W24,Feuil3!X24,Feuil3!Y24,Feuil3!Z24,Feuil3!AB24,Feuil3!AD24,Feuil3!AF24,Feuil3!AH24,Feuil3!AJ24,Feuil3!AL24,Feuil3!AM24,Feuil3!AN24,Feuil3!AP24,Feuil3!AR24,Feuil3!AS24,Feuil3!AU24,Feuil3!AV24,Feuil3!AX24,Feuil3!AY24,Feuil3!BA24,Feuil3!BC24,Feuil3!BE24,Feuil3!BG24,Feuil3!BI24,Feuil3!BK24,Feuil3!BL24)","v":6028.5714285714284},{"$f":"MIN(Feuil3!D24,Feuil3!F24,Feuil3!G24,Feuil3!I24,Feuil3!J24,Feuil3!K24,Feuil3!O24,Feuil3!P24,Feuil3!R24,Feuil3!T24,Feuil3!V24,Feuil3!W24,Feuil3!X24,Feuil3!Y24,Feuil3!Z24,Feuil3!AB24,Feuil3!AD24,Feuil3!AF24,Feuil3!AH24,Feuil3!AJ24,Feuil3!AL24,Feuil3!AM24,Feuil3!AN24,Feuil3!AP24,Feuil3!AR24,Feuil3!AS24,Feuil3!AU24,Feuil3!AV24,Feuil3!AX24,Feuil3!AY24,Feuil3!BA24,Feuil3!BC24,Feuil3!BE24,Feuil3!BG24,Feuil3!BI24,Feuil3!BK24,Feuil3!BL24)","v":4200},{"$f":"moinsdisant(E24)","v":"GEC "}]
[null,null,"expert",{"$f":"AVERAGE(Feuil3!D25,Feuil3!F25,Feuil3!G25,Feuil3!I25,Feuil3!J25,Feuil3!K25,Feuil3!O25,Feuil3!P25,Feuil3!R25,Feuil3!T25,Feuil3!V25,Feuil3!W25,Feuil3!X25,Feuil3!Y25,Feuil3!Z25,Feuil3!AB25,Feuil3!AD25,Feuil3!AF25,Feuil3!AH25,Feuil3!AJ25,Feuil3!AL25,Feuil3!AM25,Feuil3!AN25,Feuil3!AP25,Feuil3!AR25,Feuil3!AS25,Feuil3!AU25,Feuil3!AV25,Feuil3!AX25,Feuil3!AY25,Feuil3!BA25,Feuil3!BC25,Feuil3!BE25,Feuil3!BG25,Feuil3!BI25,Feuil3!BK25,Feuil3!BL25)","v":8071.4285714285716},{"$f":"MIN(Feuil3!D25,Feuil3!F25,Feuil3!G25,Feuil3!I25,Feuil3!J25,Feuil3!K25,Feuil3!O25,Feuil3!P25,Feuil3!R25,Feuil3!T25,Feuil3!V25,Feuil3!W25,Feuil3!X25,Feuil3!Y25,Feuil3!Z25,Feuil3!AB25,Feuil3!AD25,Feuil3!AF25,Feuil3!AH25,Feuil3!AJ25,Feuil3!AL25,Feuil3!AM25,Feuil3!AN25,Feuil3!AP25,Feuil3!AR25,Feuil3!AS25,Feuil3!AU25,Feuil3!AV25,Feuil3!AX25,Feuil3!AY25,Feuil3!BA25,Feuil3!BC25,Feuil3!BE25,Feuil3!BG25,Feuil3!BI25,Feuil3!BK25,Feuil3!BL25)","v":5200},{"$f":"moinsdisant(E25)","v":"GEC "}]
[null,"Project Lead","junior",{"$f":"AVERAGE(Feuil3!D26,Feuil3!F26,Feuil3!G26,Feuil3!I26,Feuil3!J26,Feuil3!K26,Feuil3!O26,Feuil3!P26,Feuil3!R26,Feuil3!T26,Feuil3!V26,Feuil3!W26,Feuil3!X26,Feuil3!Y26,Feuil3!Z26,Feuil3!AB26,Feuil3!AD26,Feuil3!AF26,Feuil3!AH26,Feuil3!AJ26,Feuil3!AL26,Feuil3!AM26,Feuil3!AN26,Feuil3!AP26,Feuil3!AR26,Feuil3!AS26,Feuil3!AU26,Feuil3!AV26,Feuil3!AX26,Feuil3!AY26,Feuil3!BA26,Feuil3!BC26,Feuil3!BE26,Feuil3!BG26,Feuil3!BI26,Feuil3!BK26,Feuil3!BL26)","v":4166.666666666667},{"$f":"MIN(Feuil3!D26,Feuil3!F26,Feuil3!G26,Feuil3!I26,Feuil3!J26,Feuil3!K26,Feuil3!O26,Feuil3!P26,Feuil3!R26,Feuil3!T26,Feuil3!V26,Feuil3!W26,Feuil3!X26,Feuil3!Y26,Feuil3!Z26,Feuil3!AB26,Feuil3!AD26,Feuil3!AF26,Feuil3!AH26,Feuil3!AJ26,Feuil3!AL26,Feuil3!AM26,Feuil3!AN26,Feuil3!AP26,Feuil3!AR26,Feuil3!AS26,Feuil3!AU26,Feuil3!AV26,Feuil3!AX26,Feuil3!AY26,Feuil3!BA26,Feuil3!BC26,Feuil3!BE26,Feuil3!BG26,Feuil3!BI26,Feuil3!BK26,Feuil3!BL26)","v":3500},{"$f":"moinsdisant(E26)","v":"TEAMWILL * PARTENAIRE SERVICE "}]
[null,null,"Senior",{"$f":"AVERAGE(Feuil3!D27,Feuil3!F27,Feuil3!G27,Feuil3!I27,Feuil3!J27,Feuil3!K27,Feuil3!O27,Feuil3!P27,Feuil3!R27,Feuil3!T27,Feuil3!V27,Feuil3!W27,Feuil3!X27,Feuil3!Y27,Feuil3!Z27,Feuil3!AB27,Feuil3!AD27,Feuil3!AF27,Feuil3!AH27,Feuil3!AJ27,Feuil3!AL27,Feuil3!AM27,Feuil3!AN27,Feuil3!AP27,Feuil3!AR27,Feuil3!AS27,Feuil3!AU27,Feuil3!AV27,Feuil3!AX27,Feuil3!AY27,Feuil3!BA27,Feuil3!BC27,Feuil3!BE27,Feuil3!BG27,Feuil3!BI27,Feuil3!BK27,Feuil3!BL27)","v":5233.333333333333},{"$f":"MIN(Feuil3!D27,Feuil3!F27,Feuil3!G27,Feuil3!I27,Feuil3!J27,Feuil3!K27,Feuil3!O27,Feuil3!P27,Feuil3!R27,Feuil3!T27,Feuil3!V27,Feuil3!W27,Feuil3!X27,Feuil3!Y27,Feuil3!Z27,Feuil3!AB27,Feuil3!AD27,Feuil3!AF27,Feuil3!AH27,Feuil3!AJ27,Feuil3!AL27,Feuil3!AM27,Feuil3!AN27,Feuil3!AP27,Feuil3!AR27,Feuil3!AS27,Feuil3!AU27,Feuil3!AV27,Feuil3!AX27,Feuil3!AY27,Feuil3!BA27,Feuil3!BC27,Feuil3!BE27,Feuil3!BG27,Feuil3!BI27,Feuil3!BK27,Feuil3!BL27)","v":4400},{"$f":"moinsdisant(E27)","v":"PARTENAIRE SERVICE "}]
[null,null,"expert",{"$f":"AVERAGE(Feuil3!D28,Feuil3!F28,Feuil3!G28,Feuil3!I28,Feuil3!J28,Feuil3!K28,Feuil3!O28,Feuil3!P28,Feuil3!R28,Feuil3!T28,Feuil3!V28,Feuil3!W28,Feuil3!X28,Feuil3!Y28,Feuil3!Z28,Feuil3!AB28,Feuil3!AD28,Feuil3!AF28,Feuil3!AH28,Feuil3!AJ28,Feuil3!AL28,Feuil3!AM28,Feuil3!AN28,Feuil3!AP28,Feuil3!AR28,Feuil3!AS28,Feuil3!AU28,Feuil3!AV28,Feuil3!AX28,Feuil3!AY28,Feuil3!BA28,Feuil3!BC28,Feuil3!BE28,Feuil3!BG28,Feuil3!BI28,Feuil3!BK28,Feuil3!BL28)","v":6733.333333333333},{"$f":"MIN(Feuil3!D28,Feuil3!F28,Feuil3!G28,Feuil3!I28,Feuil3!J28,Feuil3!K28,Feuil3!O28,Feuil3!P28,Feuil3!R28,Feuil3!T28,Feuil3!V28,Feuil3!W28,Feuil3!X28,Feuil3!Y28,Feuil3!Z28,Feuil3!AB28,Feuil3!AD28,Feuil3!AF28,Feuil3!AH28,Feuil3!AJ28,Feuil3!AL28,Feuil3!AM28,Feuil3!AN28,Feuil3!AP28,Feuil3!AR28,Feuil3!AS28,Feuil3!AU28,Feuil3!AV28,Feuil3!AX28,Feuil3!AY28,Feuil3!BA28,Feuil3!BC28,Feuil3!BE28,Feuil3!BG28,Feuil3!BI28,Feuil3!BK28,Feuil3!BL28)","v":4700},{"$f":"moinsdisant(E28)","v":"PARTENAIRE SERVICE "}]
[null,"AMOA/BA","junior",{"$f":"AVERAGE(Feuil3!D29,Feuil3!F29,Feuil3!G29,Feuil3!I29,Feuil3!J29,Feuil3!K29,Feuil3!O29,Feuil3!P29,Feuil3!R29,Feuil3!T29,Feuil3!V29,Feuil3!W29,Feuil3!X29,Feuil3!Y29,Feuil3!Z29,Feuil3!AB29,Feuil3!AD29,Feuil3!AF29,Feuil3!AH29,Feuil3!AJ29,Feuil3!AL29,Feuil3!AM29,Feuil3!AN29,Feuil3!AP29,Feuil3!AR29,Feuil3!AS29,Feuil3!AU29,Feuil3!AV29,Feuil3!AX29,Feuil3!AY29,Feuil3!BA29,Feuil3!BC29,Feuil3!BE29,Feuil3!BG29,Feuil3!BI29,Feuil3!BK29,Feuil3!BL29)","v":3638.8888888888887},{"$f":"MIN(Feuil3!D29,Feuil3!F29,Feuil3!G29,Feuil3!I29,Feuil3!J29,Feuil3!K29,Feuil3!O29,Feuil3!P29,Feuil3!R29,Feuil3!T29,Feuil3!V29,Feuil3!W29,Feuil3!X29,Feuil3!Y29,Feuil3!Z29,Feuil3!AB29,Feuil3!AD29,Feuil3!AF29,Feuil3!AH29,Feuil3!AJ29,Feuil3!AL29,Feuil3!AM29,Feuil3!AN29,Feuil3!AP29,Feuil3!AR29,Feuil3!AS29,Feuil3!AU29,Feuil3!AV29,Feuil3!AX29,Feuil3!AY29,Feuil3!BA29,Feuil3!BC29,Feuil3!BE29,Feuil3!BG29,Feuil3!BI29,Feuil3!BK29,Feuil3!BL29)","v":2000},{"$f":"moinsdisant(E29)","v":"VALORIS * KM PROJETS "}]
[null,null,"senior",{"$f":"AVERAGE(Feuil3!D30,Feuil3!F30,Feuil3!G30,Feuil3!I30,Feuil3!J30,Feuil3!K30,Feuil3!O30,Feuil3!P30,Feuil3!R30,Feuil3!T30,Feuil3!V30,Feuil3!W30,Feuil3!X30,Feuil3!Y30,Feuil3!Z30,Feuil3!AB30,Feuil3!AD30,Feuil3!AF30,Feuil3!AH30,Feuil3!AJ30,Feuil3!AL30,Feuil3!AM30,Feuil3!AN30,Feuil3!AP30,Feuil3!AR30,Feuil3!AS30,Feuil3!AU30,Feuil3!AV30,Feuil3!AX30,Feuil3!AY30,Feuil3!BA30,Feuil3!BC30,Feuil3!BE30,Feuil3!BG30,Feuil3!BI30,Feuil3!BK30,Feuil3!BL30)","v":5144.7368421052633},{"$f":"MIN(Feuil3!D30,Feuil3!F30,Feuil3!G30,Feuil3!I30,Feuil3!J30,Feuil3!K30,Feuil3!O30,Feuil3!P30,Feuil3!R30,Feuil3!T30,Feuil3!V30,Feuil3!W30,Feuil3!X30,Feuil3!Y30,Feuil3!Z30,Feuil3!AB30,Feuil3!AD30,Feuil3!AF30,Feuil3!AH30,Feuil3!AJ30,Feuil3!AL30,Feuil3!AM30,Feuil3!AN30,Feuil3!AP30,Feuil3!AR30,Feuil3!AS30,Feuil3!AU30,Feuil3!AV30,Feuil3!AX30,Feuil3!AY30,Feuil3!BA30,Feuil3!BC30,Feuil3!BE30,Feuil3!BG30,Feuil3!BI30,Feuil3!BK30,Feuil3!BL30)","v":3750},{"$f":"moinsdisant(E30)","v":"LENDYS "}]
[null,null,"expert",{"$f":"AVERAGE(Feuil3!D31,Feuil3!F31,Feuil3!G31,Feuil3!I31,Feuil3!J31,Feuil3!K31,Feuil3!O31,Feuil3!P31,Feuil3!R31,Feuil3!T31,Feuil3!V31,Feuil3!W31,Feuil3!X31,Feuil3!Y31,Feuil3!Z31,Feuil3!AB31,Feuil3!AD31,Feuil3!AF31,Feuil3!AH31,Feuil3!AJ31,Feuil3!AL31,Feuil3!AM31,Feuil3!AN31,Feuil3!AP31,Feuil3!AR31,Feuil3!AS31,Feuil3!AU31,Feuil3!AV31,Feuil3!AX31,Feuil3!AY31,Feuil3!BA31,Feuil3!BC31,Feuil3!BE31,Feuil3!BG31,Feuil3!BI31,Feuil3!BK31,Feuil3!BL31)","v":6290},{"$f":"MIN(Feuil3!D31,Feuil3!F31,Feuil3!G31,Feuil3!I31,Feuil3!J31,Feuil3!K31,Feuil3!O31,Feuil3!P31,Feuil3!R31,Feuil3!T31,Feuil3!V31,Feuil3!W31,Feuil3!X31,Feuil3!Y31,Feuil3!Z31,Feuil3!AB31,Feuil3!AD31,Feuil3!AF31,Feuil3!AH31,Feuil3!AJ31,Feuil3!AL31,Feuil3!AM31,Feuil3!AN31,Feuil3!AP31,Feuil3!AR31,Feuil3!AS31,Feuil3!AU31,Feuil3!AV31,Feuil3!AX31,Feuil3!AY31,Feuil3!BA31,Feuil3!BC31,Feuil3!BE31,Feuil3!BG31,Feuil3!BI31,Feuil3!BK31,Feuil3!BL31)","v":4400},{"$f":"moinsdisant(E31)","v":"PARTENAIRE SERVICE "}]

{"sheet":"Feuil3","index":1,"n_rows":31,"n_cols":65,"rows_kept":31,"cut":false,"hidden":false,"merged":[[0,39,0,40],[0,35,0,36],[0,33,0,34],[0,31,0,32],[0,15,0,16],[0,52,0,53],[0,50,0,51],[0,47,0,48],[0,44,0,45],[0,41,0,42],[1,0,30,0],[0,29,0,30],[0,27,0,28],[0,25,0,26],[0,19,0,20],[0,17,0,18],[0,12,0,13],[0,10,0,11],[0,6,0,7],[0,3,0,4],[1,1,6,1],[25,1,27,1],[7,1,9,1],[28,1,30,1],[10,1,12,1],[13,1,15,1],[16,1,18,1],[19,1,21,1],[22,1,24,1],[0,56,0,57],[0,58,0,59],[0,60,0,61],[0,63,0,64],[0,54,0,55]]}
["domaine","profil","seniorité","Euro groupe consulting",null,"Nimbleways","(local) EXIOM (international)",null,"systema","ATOS","Sia Partner",null,"BFS Consulting",null,"TNP","Global Performance",null,"Inetum",null,"ACCOMPANY Consulting",null,"UCOTRA","WEPARTNER","DEVOTEAM","LENDYS","VALYANS",null,"AVALIANCE",null,"CRIF",null,"UP ADVISORY",null,"IB CONSULTING",null,"NEXIUS",null,"EFFYIS","VALORIS","ITSS",null,"GEC",null,"COST HOUSE","KPMG",null,"MAZARS","LUNALOGIC  AFRICA",null,"FREELANCE","WAVESTONE",null,"AILANCY",null,"KM PROJETS",null,"DELOITTE",null,"TEAMWILL",null,"PARTENAIRE SERVICE",null,"LMS","Regulation Partners"]
["Conseil en strategie & management","Consultant","junior",6000,null,null,null,null,3500,null,5000,900,3900,7000,null,3600,4000,4000,850,null,null,6500,3600,null,null,null,null,null,null,null,null,3500,5500,null,null,null,null,null,null,null,null,null,null,null,5500,1000,5500,null,null,null,6000,8500,5000,null,3000,3300,null,null,null,null,3500,null,null,null,800]
[null,null,"confirme",7500,null,null,null,null,null,null,null,null,null,null,null,null,null,null,null,null,null,null,null,null,null,null,null,null,null,null,null,5000,7000,null,null,null,null,null,null,null,null,null,null,null,null,null,null,null,null,null,null,null,null,null,null,null,null,null,null,null,null,null,null,null,950]
[null,null,"senior",9000,990,null,null,null,4000,null,8000,1200,4800,10000,null,5000,7000,4500,1250,null,null,7500,4800,null,null,null,null,null,null,null,null,7500,10000,null,null,null,null,null,null,null,null,null,null,null,9500,1500,7200,null,null,null,7500,10000,7000,16000,4500,4800,null,null,null,null,4400,null,null,null,1200]
[null,null,"manager",11000,1215,null,null,null,4500,null,null,null,5500,12000,null,7000,10000,5500,1600,null,null,9000,6000,null,null,null,null,null,null,null,null,null,null,null,null,null,null,null,null,null,null,null,null,null,11000,1750,9300,null,null,null,8500,15000,10000,22000,5000,5300]
[null,null,"senior manager",12500,1600,null,null,null,null,null,null,null,null,null,null,null,null,null,null,null,null,null,null,null,null,null,null,null,null,null,null,null,null,null,null,null,null,null,null,null,null,null,null,null,13000,2150,null,null,null,null,null,null,null,null,null,null,null,null,null,null,5400]
[null,null,"Partner",15000,2000,null,null,null,null,null,10000,1500,null,null,null,null,null,null,null,null,null,null,null,null,null,null,null,null,null,null,null,null,null,null,null,null,null,null,null,null,null,null,null,null,16000,2150]
[null,"PMO","junior",null,null,null,null,null,null,null,null,null,null,null,null,null,null,null,null,3500,350,null,3700,4000,null,7000,null,null,null,null,700,2750,3500,3000,4500,null,null,null,2500,3000,null,3200,null,3000,5500,1000,5000,3500,"NA",3000,4500,null,3500,null,3000,3300,5500,11700,3500,5000,3500,null,null,null,800]
[null,null,"senior",null,null,null,null,null,null,null,null,null,null,null,null,null,null,null,null,4500,450,null,4800,5000,null,9000,null,null,null,null,780,4000,6000,4500,5500,null,null,null,4000,4500,5500,4200,8000,4000,9500,1500,7000,4500,7500,4000,6000,null,4500,null,4500,4800,7000,16000,4800,6500,4200,null,4800,null,950]
[null,null,"expert",null,null,null,null,null,null,null,null,null,null,null,null,null,null,null,null,6000,700,null,5500,6000,null,12000,null,null,null,null,850,5000,8000,5500,6500,null,null,null,8000,6500,6500,5200,13000,4500,11000,1750,9000,5500,10000,4800,7000,null,5900,null,5000,5300,10500,26000,6000,8000,4700,null,6500,null,1200]
[null,"Organisation","junior",null,null,null,null,null,null,null,null,null,null,null,null,null,null,null,null,3500,350,null,null,null,null,null,null,null,null,null,700,2750,3500,3000,4500,null,null,null,null,null,null,3200,null,5000,null,null,4500,null,null,3000,5500,8500,3900,null,null,null,5500,11700,null,null,3500]
[null,null,"senior",null,null,null,null,null,null,null,null,null,null,null,null,null,null,null,null,4500,450,null,null,null,null,null,null,null,null,null,780,4000,6000,4500,5500,null,null,null,null,null,null,4200,8000,6500,null,null,5000,null,null,4500,7000,10000,4900,13000,null,null,7000,16000,null,null,4200,null,4800]
[null,null,"expert",null,null,null,null,null,null,null,null,null,null,null,null,null,null,null,null,6000,700,null,null,null,null,null,null,null,null,null,850,5000,8000,5500,6500,null,null,null,null,null,null,5200,13000,7500,null,null,8000,null,null,6000,8000,15000,6500,18000,null,null,10500,26000,null,null,4700,null,6500]
[null,"management de projet","junior",null,null,null,null,null,null,null,null,null,null,null,null,null,null,null,null,3500,350,null,null,null,null,null,null,null,null,null,null,null,null,null,null,null,null,null,null,null,null,3200,null,3000,null,null,5000,null,null,3000,4500,null,3500,null,null,null,5500,11700,null,null,null,null,null,null,800]
[null,null,"senior",null,null,null,null,null,null,null,null,null,null,null,null,null,null,null,null,4500,450,null,null,null,null,null,null,null,null,null,null,null,null,null,null,null,null,null,null,null,null,4200,8000,4000,null,null,7000,null,null,4000,6000,null,4500,16000,null,null,7000,16000,null,null,null,null,4800,null,950]
[null,null,"expert",null,null,null,null,null,null,null,null,null,null,null,null,null,null,null,null,6000,700,null,null,null,null,null,null,null,null,null,null,null,null,null,null,null,null,null,null,null,null,5200,13000,4500,null,null,9000,null,null,4800,7000,null,5900,19000,null,null,10500,26000,null,null,null,null,6500,null,1200]
[null,"Conseil en strategie & management","junior",null,null,null,null,null,null,null,null,null,null,null,null,null,null,null,null,3500,350,null,3800,null,null,null,null,null,null,null,null,2750,3500,3000,4500,null,null,null,null,null,null,3200,null,5000,5500,1000,5000,null,null,null,5500,8500,3900,null,3000,3300,5500,11700,null,null,3900,null,null,null,800]
[null,null,"senior",null,null,null,null,null,null,null,null,null,null,null,null,null,null,null,null,4500,450,null,4800,null,null,null,null,null,null,null,null,4000,6000,4500,5500,null,null,null,null,null,null,4200,8000,6500,9500,1500,7500,null,null,null,7000,10000,4900,13000,4500,4800,7000,16000,null,null,4400,null,4800,null,950]
[null,null,"expert",null,null,null,null,null,null,null,null,null,null,null,null,null,null,null,null,6000,700,null,5800,null,null,null,null,null,null,null,null,5000,8000,5500,6500,null,null,null,null,null,null,5200,13000,7500,11000,1750,8500,null,null,null,8000,15000,6500,18000,5000,5300,10500,26000,null,null,5400,null,6500,null,1200]
[null,"formations","junior",null,null,null,null,null,null,null,null,null,null,null,null,null,null,null,null,3500,350,null,"_",null,null,null,null,null,null,null,null,2700,3500,3000,4500,null,null,null,null,null,null,null,null,"NA",5500,1000,"NA",null,null,null,4500,8500,"NA",null,null,null,5500,11700,null,null,3500]
[null,null,"senior",null,null,null,null,null,null,null,null,null,null,null,null,null,null,null,null,4500,450,null,5300,null,null,null,null,null,null,null,null,4000,6000,4500,5500,null,null,null,null,null,null,4500,8000,6500,9500,1500,5500,null,null,null,6000,10000,3900,13000,null,null,6500,16000,null,null,4400,null,6000]
[null,null,"expert",null,null,null,null,null,null,null,null,null,null,null,null,null,null,null,null,6000,700,null,6500,null,null,null,null,null,null,null,null,5000,8000,5500,6500,null,null,null,null,null,null,7000,13000,7500,11000,1750,8000,null,null,null,8000,15000,4900,19000,null,null,9500,26000,6500,8500,4900,null,8000]
[null,"Consultant strategie &transformation","junior",null,null,null,null,null,null,null,null,null,null,null,null,null,null,null,null,null,null,null,null,null,null,8000,null,null,null,null,null,3500,5500,3000,4500,null,null,null,null,null,null,3200,null,5000,null,null,5500]
[null,null,"senior",null,null,null,null,null,null,null,null,null,null,null,null,null,null,null,null,null,null,null,null,null,null,10000,null,null,null,null,null,5000,7000,4500,5500,null,null,null,null,null,null,4200,8000,6500,null,null,7200,null,null,null,null,null,null,null,null,null,null,null,null,null,null,null,4800]
[null,null,"expert",null,null,null,null,null,null,null,null,null,null,null,null,null,null,null,null,null,null,null,null,null,null,15000,20000,null,null,null,null,7500,10000,5500,6500,null,null,null,null,null,null,5200,13000,7500,null,null,9300,null,null,null,null,null,null,null,null,null,null,null,null,null,null,null,6500]
[null,"Project Lead","junior",null,null,null,null,null,null,null,null,null,null,null,null,null,null,null,null,null,null,null,null,null,null,null,null,null,null,null,null,null,null,null,null,null,null,null,null,null,null,null,null,null,null,null,null,null,null,null,null,null,null,null,null,null,5500,11700,3500,5000,3500]
[null,null,"Senior",null,null,null,null,null,null,null,null,null,null,null,null,null,null,null,null,null,null,null,null,null,null,null,null,null,null,null,900,null,null,null,null,null,null,null,null,null,null,null,null,null,null,null,null,null,null,null,null,null,null,null,null,null,6500,16000,4800,6500,4400]
[null,null,"expert",null,null,null,null,null,null,null,null,null,null,null,null,null,null,null,null,null,null,null,null,null,null,null,null,null,null,null,1000,null,null,null,null,null,null,null,null,null,null,null,null,null,null,null,null,null,null,null,null,null,null,null,null,null,9500,26000,6000,8000,4700]
[null,"AMOA/BA","junior",null,null,null,null,null,null,null,null,null,null,null,null,null,null,null,null,3500,350,null,3700,4000,2750,7000,null,null,null,null,null,2750,3500,3000,4500,null,null,null,2000,null,null,3200,null,3500,5500,1000,4500,3700,"NA",3000,4000,null,3500,null,2000,2300,null,null,null,null,3900,null,null,null,800]
[null,null,"senior",null,null,null,null,null,null,null,null,null,null,null,null,null,null,null,null,4500,450,null,4800,5000,3750,9000,null,null,null,null,null,4000,6000,4500,5500,null,null,null,4500,5500,null,4200,8000,4200,9500,1500,6500,4500,7500,4000,5500,null,4500,null,4500,4800,null,null,null,null,null,null,4800,null,950]
[null,null,"expert",null,null,null,null,null,null,null,null,null,null,null,null,null,null,null,null,6000,700,null,5500,6000,4500,12000,null,null,null,null,null,5000,8000,5500,6500,null,null,null,6000,7000,8000,5200,13000,5000,11000,1750,8500,5500,10000,4800,6500,null,5900,null,5000,5300,null,null,null,null,4400,null,6500,null,1200]

{"sheet":"Feuil1","index":2,"n_rows":0,"n_cols":0,"rows_kept":0,"cut":false,"hidden":false,"merged":[]}